bitfinex-derivatives/quotes_BTCF0:USTF0_20250327
["timestamp","ask_amount","ask_price","bid_price","bid_amount"]
[1743057136854,0.12985857,87532.0,87531.0,0.031]
[1743057137054,0.12985857,87532.0,87531.0,0.03216]
[1743057137362,0.19929989,87532.0,87531.0,0.03216]
[1743057137656,0.19046433,87532.0,87531.0,0.031]
[1743057137861,0.19936612,87532.0,87531.0,0.031]
[1743057138057,0.19936612,87532.0,87531.0,0.03208]
[1743057138264,0.19936612,87532.0,87531.0,0.03308]
[1743057138649,0.19936612,87532.0,87531.0,0.032]
[1743057138855,0.19936092,87532.0,87531.0,0.03308]
[1743057139051,0.42607731,87532.0,87531.0,0.03408]
[1743057139355,0.42033599,87532.0,87531.0,0.033]
[1743057139860,0.35663599,87532.0,87531.0,0.1472315]
[1743057140057,0.23669232,87532.0,87531.0,0.1472315]
[1743057140257,0.23669232,87532.0,87531.0,0.1483515]
[1743057140458,0.23669232,87532.0,87531.0,1.6799515]
[1743057140958,0.2277964,87532.0,87531.0,1.6799515]
[1743057142058,0.3420266,87532.0,87531.0,1.6799515]
[1743057143163,0.12409848,87532.0,87531.0,1.6799515]
[1743057144162,0.00986828,87532.0,87531.0,1.6799515]
[1743057144363,0.00878827,87532.0,87531.0,1.6799515]
[1743057144562,0.00986828,87532.0,87531.0,1.6799515]
[1743057145063,0.00108001,87532.0,87531.0,1.6799515]
[1743057145260,8e-05,87533.0,87532.0,0.1142302]
[1743057145459,8e-05,87533.0,87532.0,0.2234702]
[1743057145659,8e-05,87533.0,87532.0,0.2886702]
[1743057146069,0.00116001,87533.0,87532.0,1.7886702]
[1743057146269,8e-05,87533.0,87532.0,1.7886702]
[1743057146460,8e-05,87533.0,87532.0,1.7896702]
[1743057150562,0.10270592,87536.0,87535.0,0.1142263]
[1743057150762,0.00017129,87539.0,87538.0,0.1142223]
[1743057151063,0.17117607,87553.0,87552.0,0.1142041]
[1743057151267,0.17117607,87553.0,87552.0,0.1152841]
[1743057151268,0.17225608,87553.0,87552.0,0.1152841]
[1743057151861,0.17225608,87553.0,87552.0,0.19056432]
[1743057152773,0.20535608,87553.0,87552.0,0.19056432]
[1743057153763,0.23805608,87553.0,87552.0,0.19056432]
[1743057154272,0.35225888,87553.0,87552.0,0.19056432]
[1743057154464,0.23805608,87553.0,87552.0,0.19056432]
[1743057158764,0.35225888,87553.0,87552.0,0.19056432]
[1743057160476,0.17225608,87553.0,87552.0,0.19056432]
[1743057160677,0.00108001,87553.0,87552.0,0.19056432]
[1743057161176,0.03348001,87553.0,87552.0,1.69056432]
[1743057161378,0.0324,87553.0,87552.0,1.69056432]
[1743057163072,0.0648,87553.0,87552.0,1.69056432]
[1743057165871,0.18008281,87553.0,87552.0,1.79880432]
[1743057167372,0.18008281,87553.0,87552.0,0.26770432]
[1743057167677,0.18008281,87553.0,87552.0,0.26766432]
[1743057175486,0.1790028,87553.0,87552.0,0.26766432]
[1743057175678,0.18008281,87553.0,87552.0,0.26766432]
[1743057175878,0.18008281,87553.0,87552.0,1.76766432]
[1743057176888,0.1790028,87553.0,87552.0,1.76766432]
[1743057177088,0.18008281,87553.0,87552.0,1.76766432]
[1743057177287,0.1790028,87553.0,87552.0,1.65946432]
[1743057177485,0.18012281,87553.0,87552.0,1.76758432]
[1743057177685,0.18012281,87553.0,87552.0,1.7563041]
[1743057178189,0.1889878,87553.0,87552.0,1.6481841]
[1743057179290,0.19477042,87553.0,87552.0,1.6481841]
[1743057180492,0.20048193,87553.0,87552.0,1.6481841]
[1743057181395,0.20060305,87553.0,87552.0,1.6481841]
[1743057181984,0.20060305,87553.0,87552.0,1.50108]
[1743057182188,0.20060305,87553.0,87552.0,0.00108]
[1743057182887,0.20060305,87553.0,87552.0,0.03378]
[1743057183294,0.20061249,87553.0,87552.0,0.03378]
[1743057184186,0.20061249,87553.0,87552.0,0.00108]
[1743057185093,0.20064915,87553.0,87552.0,0.00108]
[1743057191290,0.92224915,87553.0,87552.0,0.00108]
[1743057192501,0.1142041,87552.0,87551.0,0.0325]
[1743057192692,0.16145392,87552.0,87551.0,0.03366]
[1743057192891,0.22305392,87552.0,87551.0,0.03366]
[1743057193802,0.22883654,87552.0,87551.0,0.03366]
[1743057195002,0.16733654,87552.0,87551.0,0.03366]
[1743057195303,0.16733654,87552.0,87551.0,0.0325]
[1743057195491,0.19823654,87552.0,87551.0,0.0325]
[1743057195692,0.19823654,87552.0,87551.0,0.1478254]
[1743057197901,0.33505616,87552.0,87551.0,0.1478254]
[1743057199505,0.33505622,87552.0,87551.0,0.03362]
[1743057201901,0.32036634,87552.0,87551.0,0.03362]
[1743057202098,0.33506299,87552.0,87551.0,0.03362]
[1743057202494,0.1142132,87545.0,87544.0,0.00017129]
[1743057202700,0.49042985,87545.0,87544.0,0.00089129]
[1743057203104,0.4961697,87545.0,87544.0,0.00017129]
[1743057205311,0.49621029,87545.0,87544.0,0.00017129]
[1743057205710,0.60449029,87545.0,87544.0,0.00017129]
[1743057206807,0.60445029,87545.0,87544.0,0.00017129]
[1743057207608,0.59873738,87545.0,87544.0,0.00017129]
[1743057207912,0.60445045,87545.0,87544.0,0.00017129]
[1743057208404,0.77562652,87545.0,87544.0,0.00017129]
[1743057209514,0.7756445,87545.0,87544.0,0.00017129]
[1743057210314,0.1142236,87537.0,87536.0,0.0605]
[1743057210515,0.49033622,87537.0,87536.0,0.0605]
[1743057210712,0.49033622,87537.0,87536.0,0.06122]
[1743057211014,0.50183745,87537.0,87536.0,0.06122]
[1743057211315,0.57122007,87537.0,87536.0,0.06122]
[1743057212317,0.57122007,87537.0,87536.0,0.03072]
[1743057212514,0.57122007,87537.0,87536.0,0.03]
[1743057212708,0.1142328,87530.0,87529.0,0.0324]
[1743057212904,0.12894541,87530.0,87529.0,0.0642]
[1743057213109,0.13540803,87530.0,87529.0,0.0642]
[1743057213319,0.13540853,87530.0,87529.0,0.0642]
[1743057213519,0.22880853,87530.0,87529.0,0.0642]
[1743057215114,0.21980899,87530.0,87529.0,0.0642]
[1743057215315,0.22877495,87530.0,87529.0,0.0642]
[1743057215819,0.58957495,87530.0,87529.0,0.0642]
[1743057219019,0.58957501,87530.0,87529.0,0.0642]
[1743057219619,0.22877501,87530.0,87529.0,0.0642]
[1743057219815,0.58957501,87530.0,87529.0,0.0642]
[1743057220610,0.22877501,87530.0,87529.0,0.0642]
[1743057220811,0.22872695,87530.0,87529.0,0.0642]
[1743057221023,0.58952695,87530.0,87529.0,0.0642]
[1743057221821,0.22872695,87530.0,87529.0,0.0642]
[1743057222020,0.58952695,87530.0,87529.0,0.0642]
[1743057222721,0.58951485,87530.0,87529.0,0.0642]
[1743057226026,0.55841485,87530.0,87529.0,0.0642]
[1743057230722,0.19761485,87530.0,87529.0,0.0642]
[1743057231418,0.69506403,87530.0,87529.0,0.0642]
[1743057231622,0.33426403,87530.0,87529.0,0.0642]
[1743057231929,0.69506403,87530.0,87529.0,0.0642]
[1743057232623,0.33426403,87530.0,87529.0,0.0642]
[1743057232832,0.69506403,87530.0,87529.0,0.0642]
[1743057233733,0.69506403,87530.0,87529.0,0.0324]
[1743057234346,0.72576403,87530.0,87529.0,0.0324]
[1743057235229,0.58911485,87530.0,87529.0,0.0324]
[1743057236428,0.94991485,87530.0,87529.0,0.0324]
[1743057237735,0.95022902,87530.0,87529.0,0.0324]
[1743057238235,0.95022902,87530.0,87528.0,0.00062828]
[1743057238236,0.1142471,87519.0,87518.0,0.0308]
[1743057238432,0.4907007,87519.0,87518.0,0.03152]
[1743057238639,0.50601488,87519.0,87518.0,0.0308]
[1743057238830,0.5117975,87519.0,87518.0,0.0308]
[1743057239631,0.5440975,87519.0,87518.0,0.00908582]
[1743057240032,0.55381476,87519.0,87518.0,0.00908582]
[1743057240442,0.55381476,87519.0,87518.0,0.00980582]
[1743057240737,0.55381476,87519.0,87512.0,0.00045708]
[1743057240738,0.114255,87513.0,87512.0,0.00045708]
[1743057241037,0.14548084,87513.0,87512.0,0.00117708]
[1743057241224,0.16098072,87513.0,87512.0,0.00117708]
[1743057241426,0.25298072,87513.0,87512.0,0.00045708]
[1743057241935,0.25298072,87513.0,87512.0,0.00417708]
[1743057242329,0.25098072,87513.0,87512.0,0.00417708]
[1743057243140,0.25098072,87513.0,87512.0,0.00717708]
[1743057243333,0.25098072,87513.0,87512.0,0.00645708]
[1743057243334,0.26220815,87513.0,87512.0,0.00645708]
[1743057243530,0.26220815,87513.0,87512.0,0.03725708]
[1743057244540,0.26220815,87513.0,87512.0,0.00645708]
[1743057244838,0.1142576,87511.0,87510.0,0.00017129]
[1743057245042,0.14536344,87511.0,87510.0,0.00017129]
[1743057245237,0.16086332,87511.0,87510.0,0.00017129]
[1743057246138,0.16086332,87511.0,87510.0,0.00317129]
[1743057246439,0.16086332,87511.0,87510.0,0.00617129]
[1743057247239,0.16086332,87511.0,87510.0,0.00317129]
[1743057247539,0.16186332,87511.0,87510.0,0.00317129]
[1743057247844,0.88346332,87511.0,87510.0,0.00317129]
[1743057248540,0.88346332,87511.0,87510.0,0.00017129]
[1743057249630,0.93901101,87511.0,87510.0,0.00017129]
[1743057250135,0.93914345,87511.0,87510.0,0.00017129]
[1743057251143,1.04882345,87511.0,87510.0,0.00017129]
[1743057253251,1.04878345,87511.0,87510.0,0.00017129]
[1743057253945,1.0487833,87511.0,87510.0,0.00017129]
[1743057254148,0.99323561,87511.0,87510.0,0.00017129]
[1743057254540,0.99323561,87511.0,87510.0,1.776e-05]
[1743057257139,0.27163561,87511.0,87510.0,1.776e-05]
[1743057257342,0.99323561,87511.0,87510.0,1.776e-05]
[1743057257537,0.99327101,87511.0,87510.0,1.776e-05]
[1743057258251,0.27167101,87511.0,87510.0,1.776e-05]
[1743057258444,0.99327101,87511.0,87510.0,1.776e-05]
[1743057258751,0.27167101,87511.0,87510.0,1.776e-05]
[1743057258948,0.99327101,87511.0,87510.0,1.776e-05]
[1743057259144,0.27167101,87511.0,87510.0,1.776e-05]
[1743057259351,0.99327101,87511.0,87510.0,1.776e-05]
[1743057261649,0.98755584,87511.0,87510.0,1.776e-05]
[1743057261852,0.99327101,87511.0,87510.0,1.776e-05]
[1743057263142,0.99328696,87511.0,87510.0,1.776e-05]
[1743057264251,1.0488438,87511.0,87510.0,1.776e-05]
[1743057264452,1.21969912,87511.0,87510.0,1.776e-05]
[1743057265954,1.21398395,87511.0,87510.0,1.776e-05]
[1743057266449,1.18904964,87511.0,87510.0,1.776e-05]
[1743057266856,0.46744964,87511.0,87510.0,1.776e-05]
[1743057267048,1.21400801,87511.0,87510.0,1.776e-05]
[1743057267243,1.20440864,87511.0,87510.0,1.776e-05]
[1743057267557,1.2197294,87511.0,87510.0,1.776e-05]
[1743057267858,0.49241423,87511.0,87510.0,1.776e-05]
[1743057268058,1.21401423,87511.0,87510.0,1.776e-05]
[1743057268261,1.19476481,87511.0,87510.0,1.776e-05]
[1743057268759,1.18904964,87511.0,87510.0,1.776e-05]
[1743057268963,1.19476481,87511.0,87510.0,1.776e-05]
[1743057269761,0.1142667,87504.0,87503.0,0.0612]
[1743057269951,0.11486671,87504.0,87503.0,0.0612]
[1743057270152,0.1398541,87504.0,87503.0,0.0612]
[1743057270352,0.12058188,87504.0,87503.0,0.0612]
[1743057270549,0.13595874,87504.0,87503.0,0.0612]
[1743057270750,0.50636927,87504.0,87503.0,0.0612]
[1743057270954,0.52186915,87504.0,87503.0,0.0622]
[1743057271155,0.04680245,87504.0,87503.0,0.177468]
[1743057271356,0.16106915,87504.0,87503.0,0.178228]
[1743057271955,0.16082835,87504.0,87503.0,0.178228]
[1743057275352,0.16082835,87504.0,87503.0,0.06396]
[1743057275557,0.52162835,87504.0,87503.0,0.06396]
[1743057275752,0.55232835,87504.0,87503.0,0.06396]
[1743057276059,0.55232835,87504.0,87503.0,0.178228]
[1743057276260,0.19152835,87504.0,87503.0,0.178228]
[1743057276757,0.55232835,87504.0,87503.0,0.06396]
[1743057277152,0.56379122,87504.0,87503.0,0.06396]
[1743057278770,0.56379122,87504.0,87503.0,0.0632]
[1743057280270,0.20299122,87504.0,87503.0,0.0632]
[1743057280470,0.56379122,87504.0,87503.0,0.06292]
[1743057280660,0.56379122,87504.0,87503.0,0.0622]
[1743057281269,0.56379146,87504.0,87503.0,0.0612]
[1743057282667,0.61935063,87504.0,87503.0,0.0612]
[1743057282861,0.25855063,87504.0,87503.0,0.0612]
[1743057283056,0.61935063,87504.0,87503.0,0.0612]
[1743057283862,0.25855063,87504.0,87503.0,0.0612]
[1743057284058,0.61935063,87504.0,87503.0,0.0612]
[1743057284259,0.25955063,87504.0,87503.0,0.0612]
[1743057284561,0.62135063,87504.0,87503.0,0.0309]
[1743057284757,0.1142746,87498.0,87497.0,0.0318]
[1743057284960,0.5062566,87498.0,87497.0,0.03252]
[1743057285171,0.49102793,87498.0,87497.0,0.03252]
[1743057285571,0.55482793,87498.0,87497.0,0.03252]
[1743057285772,0.57032781,87498.0,87497.0,0.03252]
[1743057286165,0.57032781,87498.0,87497.0,0.03352]
[1743057287087,0.57032781,87498.0,87497.0,0.0328]
[1743057287291,0.57032781,87498.0,87497.0,0.0338]
[1743057287985,0.57032781,87498.0,87497.0,0.0665]
[1743057288288,0.57032781,87498.0,87497.0,0.06722]
[1743057289187,0.20952781,87498.0,87497.0,0.06722]
[1743057289376,0.57032781,87498.0,87497.0,0.06722]
[1743057290589,0.56080989,87498.0,87497.0,0.06722]
[1743057290787,0.57002694,87498.0,87497.0,0.06722]
[1743057293185,0.57002694,87498.0,87497.0,1.56722]
[1743057293991,0.57002753,87498.0,87497.0,1.56722]
[1743057294490,0.57002753,87498.0,87497.0,0.06722]
[1743057295290,0.57002753,87498.0,87497.0,0.0665]
[1743057295593,0.0571413,87492.0,87488.0,0.21603562]
[1743057295793,0.28185855,87491.0,87490.0,0.0652]
[1743057295980,0.64325856,87491.0,87490.0,0.06592]
[1743057296383,0.65875844,87491.0,87490.0,0.06592]
[1743057296794,0.65875844,87491.0,87490.0,0.03312]
[1743057297792,0.65875844,87491.0,87490.0,0.00272]
[1743057297994,0.65875844,87491.0,87490.0,0.00472]
[1743057298989,0.65875844,87491.0,87490.0,0.004]
[1743057299490,0.67026689,87491.0,87490.0,0.004]
[1743057301584,0.67026689,87491.0,87482.0,0.00017139]
[1743057301585,0.1142942,87483.0,87482.0,0.00017139]
[1743057301783,0.49064817,87483.0,87482.0,0.00089139]
[1743057302094,0.49064817,87483.0,87482.0,0.00017139]
[1743057302394,0.49643079,87483.0,87482.0,0.00017139]
[1743057302598,0.59133079,87483.0,87482.0,0.00017139]
[1743057302793,0.59133079,87483.0,87482.0,0.00417139]
[1743057304495,0.59133079,87483.0,87482.0,0.00817139]
[1743057304889,0.59133079,87483.0,87482.0,0.04007139]
[1743057305091,0.59133221,87483.0,87482.0,0.04007139]
[1743057306195,0.59133221,87483.0,87482.0,0.00817139]
[1743057308801,0.60101033,87483.0,87482.0,0.00817139]
[1743057310602,0.60087298,87483.0,87482.0,0.03977139]
[1743057311500,0.59117693,87483.0,87482.0,0.03977139]
[1743057313797,0.59117693,87483.0,87482.0,0.04049139]
[1743057314696,0.23037693,87483.0,87482.0,0.04049139]
[1743057314896,0.59117693,87483.0,87482.0,0.04049139]
[1743057315606,0.72793023,87483.0,87482.0,0.03977139]
[1743057315998,0.72793023,87483.0,87482.0,0.04049139]
[1743057316804,0.36713023,87483.0,87482.0,0.04049139]
[1743057317006,0.72793023,87483.0,87482.0,0.04049139]
[1743057318105,0.72784676,87483.0,87482.0,0.04049139]
[1743057318500,0.59109346,87483.0,87482.0,0.04049139]
[1743057323802,0.59113845,87483.0,87482.0,0.04049139]
[1743057325609,0.02114425,87483.0,87482.0,0.15478689]
[1743057325801,0.01470739,87483.0,87482.0,0.15478689]
[1743057326001,0.01470739,87483.0,87482.0,0.18678689]
[1743057326603,0.01470739,87483.0,87482.0,0.19752722]
[1743057326817,0.01470739,87483.0,87482.0,0.19352722]
[1743057327000,0.01470739,87483.0,87482.0,0.19652722]
[1743057327307,0.17136205,87484.0,87483.0,0.1142942]
[1743057327308,0.11514734,87484.0,87483.0,0.1142942]
[1743057327500,0.11590734,87484.0,87483.0,0.1150542]
[1743057327699,0.11582734,87484.0,87483.0,0.3252542]
[1743057328707,0.11582734,87484.0,87483.0,0.1752542]
[1743057328914,0.11582734,87484.0,87483.0,0.1782542]
[1743057329111,0.00076,87484.0,87483.0,0.1782542]
[1743057329309,0.1142928,87484.0,87483.0,0.2925484]
[1743057329613,0.1150128,87484.0,87483.0,0.2925484]
[1743057329813,0.1142928,87484.0,87483.0,0.2925484]
[1743057330004,0.1150128,87484.0,87483.0,0.2925484]
[1743057330205,0.5070128,87484.0,87483.0,0.2955484]
[1743057330404,0.5385128,87484.0,87483.0,0.2955484]
[1743057330604,0.5385128,87484.0,87483.0,0.06696]
[1743057332013,0.5385128,87484.0,87483.0,0.1812542]
[1743057339016,0.1777128,87484.0,87483.0,0.1812542]
[1743057339217,0.5385128,87484.0,87483.0,0.1812542]
[1743057339407,0.54728861,87484.0,87483.0,0.1812542]
[1743057339716,0.55319174,87484.0,87483.0,0.1812542]
[1743057341116,0.19239174,87484.0,87483.0,0.1812542]
[1743057341306,0.55319174,87484.0,87483.0,0.1812542]
[1743057344628,0.55317864,87484.0,87483.0,0.1812542]
[1743057345718,0.54441593,87484.0,87483.0,0.1812542]
[1743057348524,0.55013227,87484.0,87483.0,0.1812542]
[1743057349318,0.55013227,87484.0,87483.0,1.6812542]
[1743057349616,0.55013227,87484.0,87483.0,0.1812542]
[1743057349821,0.54441593,87484.0,87483.0,0.1812542]
[1743057350017,0.36742313,87484.0,87483.0,0.1812542]
[1743057350211,0.00662313,87484.0,87483.0,0.30137546]
[1743057350411,0.00590313,87484.0,87483.0,0.66217546]
[1743057350811,0.00590313,87484.0,87483.0,2.16217546]
[1743057354625,0.00590313,87484.0,87483.0,2.52297546]
[1743057355219,8e-05,87485.0,87484.0,0.1142928]
[1743057355527,8e-05,87485.0,87484.0,0.1799128]
[1743057355923,8e-05,87485.0,87484.0,1.6799128]
[1743057356126,0.00595817,87485.0,87484.0,1.6799128]
[1743057356328,0.00595817,87485.0,87484.0,1.6829128]
[1743057357820,0.00595817,87485.0,87484.0,1.6859128]
[1743057358325,9e-08,87499.0,87498.0,0.1142746]
[1743057358632,0.0311,87526.0,87520.0,0.1142458]
[1743057358925,0.0100535,87521.0,87520.0,2.0845258]
[1743057359116,0.0093335,87521.0,87520.0,2.0845258]
[1743057359517,0.0093335,87521.0,87520.0,2.1468258]
[1743057359927,0.0093335,87521.0,87520.0,2.15811526]
[1743057360421,0.0093335,87521.0,87520.0,2.15815526]
[1743057360730,0.00941067,87521.0,87520.0,2.15815526]
[1743057361726,0.04061067,87521.0,87520.0,2.15815526]
[1743057361920,0.07341067,87521.0,87520.0,2.15815526]
[1743057363737,0.07337567,87521.0,87520.0,2.15815526]
[1743057365426,0.0733201,87521.0,87520.0,2.15815526]
[1743057366034,0.0733201,87521.0,87520.0,1.79735526]
[1743057366234,0.0733201,87521.0,87520.0,2.15815526]
[1743057371834,0.07926888,87521.0,87520.0,2.15815526]
[1743057372936,0.07926888,87521.0,87520.0,1.79735526]
[1743057373143,0.0792587,87521.0,87520.0,2.15815526]
[1743057374233,0.07330992,87521.0,87520.0,2.15815526]
[1743057375731,0.07925582,87521.0,87520.0,2.15815526]
[1743057376836,0.0792738,87521.0,87520.0,2.15815526]
[1743057380442,0.0792738,87521.0,87520.0,2.12685526]
[1743057380651,0.0792738,87521.0,87520.0,2.09585526]
[1743057382443,0.07927083,87521.0,87520.0,2.09585526]
[1743057382628,0.07927083,87521.0,87520.0,1.98705526]
[1743057382937,0.07927083,87521.0,87520.0,2.09545526]
[1743057386247,0.07927083,87521.0,87520.0,1.73465526]
[1743057386546,0.07927083,87521.0,87520.0,2.09545526]
[1743057389035,0.07927083,87521.0,87520.0,2.12765526]
[1743057389437,0.07927083,87521.0,87520.0,2.16065526]
[1743057390336,0.07927083,87521.0,87520.0,1.79985526]
[1743057390533,0.07927083,87521.0,87520.0,2.16065526]
[1743057390737,0.07927083,87521.0,87520.0,1.79985526]
[1743057390946,0.07942442,87521.0,87520.0,2.16065526]
[1743057391747,0.07942442,87521.0,87520.0,1.79985526]
[1743057391945,0.0794205,87521.0,87520.0,2.16065526]
[1743057393355,0.08917361,87521.0,87520.0,2.16065526]
[1743057395048,0.08917361,87521.0,87520.0,1.79985526]
[1743057395248,0.08917361,87521.0,87520.0,2.16065526]
[1743057395948,0.0892712,87521.0,87520.0,2.16065526]
[1743057397755,0.08923321,87521.0,87520.0,2.16065526]
[1743057397957,0.0794801,87521.0,87520.0,2.16065526]
[1743057399550,0.07949552,87521.0,87520.0,2.16065526]
[1743057400851,0.07949552,87521.0,87520.0,1.79985526]
[1743057401057,0.07949552,87521.0,87520.0,2.16065526]
[1743057405156,0.07949552,87521.0,87520.0,1.79985526]
[1743057405354,0.07949552,87521.0,87520.0,2.16065526]
[1743057409167,0.07949552,87521.0,87520.0,2.56185867]
[1743057410859,0.07934242,87521.0,87520.0,2.56185867]
[1743057412665,0.07935509,87521.0,87520.0,2.56185867]
[1743057413064,0.01535509,87521.0,87520.0,2.66185867]
[1743057414173,0.00017139,87529.0,87520.0,2.66185867]
[1743057414174,0.00017139,87529.0,87528.0,0.1142354]
[1743057414378,0.00017139,87529.0,87528.0,0.4757554]
[1743057414970,0.00017139,87529.0,87528.0,0.5392554]
[1743057415570,0.00417139,87529.0,87528.0,0.5392554]
[1743057416273,0.06787139,87529.0,87528.0,0.5392554]
[1743057419781,0.06787139,87529.0,87528.0,0.1784554]
[1743057419982,0.06787139,87529.0,87528.0,0.5392554]
[1743057420593,0.06787139,87529.0,87528.0,0.1784554]
[1743057420897,0.06787139,87529.0,87528.0,0.5392554]
[1743057426090,0.07664721,87529.0,87528.0,0.5392554]
[1743057426491,0.0313,87539.0,87533.0,0.0571143]
[1743057426687,0.0313,87539.0,87536.0,0.475025]
[1743057426887,0.03138,87539.0,87536.0,1.975825]
[1743057427897,0.00926967,87537.0,87536.0,1.975825]
[1743057428797,0.01026967,87537.0,87536.0,1.975825]
[1743057428986,0.01426967,87537.0,87536.0,1.975825]
[1743057430089,0.07496967,87537.0,87536.0,1.975825]
[1743057432596,0.07496967,87537.0,87536.0,2.083985]
[1743057437003,0.07496967,87537.0,87536.0,2.146585]
[1743057437898,0.07496967,87537.0,87536.0,1.785785]
[1743057438106,0.07496967,87537.0,87536.0,2.146585]
[1743057440904,0.07496967,87537.0,87536.0,1.785785]
[1743057441104,0.07496967,87537.0,87536.0,2.146585]
[1743057441300,0.07496967,87537.0,87536.0,1.785785]
[1743057441503,0.07496967,87537.0,87536.0,2.146585]
[1743057446307,0.07496967,87537.0,87536.0,2.038425]
[1743057446608,0.07496967,87537.0,87536.0,1.975825]
[1743057446801,0.07496967,87537.0,87536.0,1.723185]
[1743057449110,0.07496967,87537.0,87536.0,1.99592473]
[1743057452207,0.07496967,87537.0,87536.0,1.723185]
[1743057455317,0.07496967,87537.0,87536.0,1.92771768]
[1743057457509,0.18919327,87537.0,87536.0,1.92771768]
[1743057458221,0.07496967,87537.0,87536.0,1.92771768]
[1743057458822,0.07496967,87537.0,87536.0,1.81955768]
[1743057459321,0.07496967,87537.0,87536.0,1.85255768]
[1743057459515,0.07496967,87537.0,87536.0,1.88295768]
[1743057460716,0.07568967,87537.0,87536.0,1.88295768]
[1743057460916,0.07496967,87537.0,87536.0,1.88295768]
[1743057461124,0.07568967,87537.0,87536.0,1.88295768]
[1743057461919,0.07568967,87537.0,87536.0,1.678425]
[1743057462620,0.07568967,87537.0,87536.0,1.615025]
[1743057462621,0.18991327,87537.0,87536.0,1.615025]
[1743057462808,0.18991327,87537.0,87536.0,0.0008]
[1743057462809,0.19562604,87537.0,87536.0,0.0008]
[1743057463121,0.19562604,87537.0,87536.0,0.115025]
[1743057463315,0.18991327,87537.0,87536.0,0.115025]
[1743057463618,0.09034038,87537.0,87536.0,0.115025]
[1743057463826,0.08462761,87537.0,87536.0,0.115025]
[1743057464616,0.19885121,87537.0,87536.0,1.615025]
[1743057468333,0.19883855,87537.0,87536.0,1.615025]
[1743057470636,0.08461495,87537.0,87536.0,1.615025]
[1743057470933,0.19883855,87537.0,87536.0,1.615025]
[1743057471127,0.02391495,87537.0,87536.0,1.615025]
[1743057471330,0.02319495,87537.0,87536.0,1.615025]
[1743057471520,0.01426967,87537.0,87536.0,1.615025]
[1743057472732,0.10896967,87537.0,87536.0,1.723225]
[1743057481738,0.01426967,87537.0,87536.0,1.723225]
[1743057485337,0.08036967,87537.0,87536.0,1.723225]
[1743057486838,0.04726967,87537.0,87536.0,1.723225]
[1743057487649,0.01426967,87537.0,87536.0,1.723225]
[1743057491646,0.01426967,87537.0,87536.0,2.084025]
[1743057492548,0.01426967,87537.0,87536.0,2.148425]
[1743057496858,0.0663,87544.0,87543.0,0.1142158]
[1743057497054,0.0663,87544.0,87543.0,0.1149358]
[1743057497559,0.06702,87544.0,87543.0,0.1266678]
[1743057497758,0.06702,87544.0,87543.0,0.1900678]
[1743057497960,0.0663,87544.0,87543.0,0.1900678]
[1743057498461,0.0673,87544.0,87543.0,0.1900678]
[1743057499952,0.0673,87544.0,87543.0,0.5508678]
[1743057500656,0.001,87544.0,87543.0,0.5508678]
[1743057501161,0.001,87544.0,87543.0,2.0508678]
[1743057507056,0.001,87544.0,87543.0,2.1508678]
[1743057509856,0.00017139,87545.0,87544.0,0.1142145]
[1743057510061,0.00017139,87545.0,87544.0,0.2231345]
[1743057510365,0.00017139,87545.0,87544.0,0.2843345]
[1743057510564,0.00017139,87545.0,87544.0,1.7843345]
[1743057510766,6e-08,87545.0,87544.0,1.7843345]
[1743057511468,8e-05,87546.0,87545.0,0.1142132]
[1743057511670,8e-05,87546.0,87545.0,0.1150132]
[1743057511973,8e-05,87546.0,87545.0,0.1768132]
[1743057512959,0.00108,87546.0,87545.0,0.1768132]
[1743057513862,0.00108,87546.0,87545.0,0.8984132]
[1743057514770,0.00108,87546.0,87545.0,0.1768132]
[1743057514973,0.00108,87546.0,87545.0,0.8984132]
[1743057516172,0.00108,87546.0,87545.0,2.3984132]
[1743057517469,0.00108,87546.0,87545.0,2.5815332]
[1743057517970,0.00108,87546.0,87545.0,3.3031332]
[1743057518772,0.00108,87546.0,87545.0,4.04595663]
[1743057519272,0.00108,87546.0,87545.0,2.71863663]
[1743057519570,0.1152919,87546.0,87545.0,2.24362343]
[1743057519777,0.1152919,87546.0,87545.0,0.74362343]
[1743057519974,0.1160119,87546.0,87545.0,0.74362343]
[1743057520177,0.1152919,87546.0,87545.0,0.74362343]
[1743057520473,0.18355815,87546.0,87545.0,2.24362343]
[1743057520674,0.18279815,87546.0,87545.0,0.74362343]
[1743057520970,0.18351815,87546.0,87545.0,0.85783663]
[1743057522877,0.18351815,87546.0,87545.0,0.1150132]
[1743057523962,0.54431815,87546.0,87545.0,0.1150132]
[1743057525375,0.54431815,87546.0,87545.0,1.6150132]
[1743057528578,0.18351815,87546.0,87545.0,1.6150132]
[1743057528774,0.55308093,87546.0,87545.0,1.6150132]
[1743057529778,0.19228093,87546.0,87545.0,1.6150132]
[1743057529978,0.55236057,87546.0,87545.0,1.6150132]
[1743057530178,0.55296058,87546.0,87545.0,0.1150132]
[1743057530573,0.55296058,87546.0,87545.0,1.6150132]
[1743057530773,0.55296058,87546.0,87533.0,0.3608]
[1743057530774,0.114225,87536.0,87533.0,0.3608]
[1743057530980,0.12366742,87536.0,87535.0,0.11499769]
[1743057531180,0.12957367,87536.0,87535.0,1.61499769]
[1743057531380,0.12889367,87536.0,87535.0,1.61499769]
[1743057531583,0.19269367,87536.0,87535.0,1.62665176]
[1743057531881,0.18493125,87536.0,87535.0,1.62665176]
[1743057537680,0.18561125,87536.0,87535.0,1.62665176]
[1743057537884,0.18561125,87536.0,87535.0,1.61499769]
[1743057538982,0.18561125,87536.0,87535.0,1.62636884]
[1743057540384,0.1142367,87527.0,87524.0,0.0571201]
[1743057540571,0.00084,87527.0,87526.0,0.00088]
[1743057540777,0.115078,87527.0,87526.0,1.6142367]
[1743057540978,0.18486442,87527.0,87526.0,1.6148367]
[1743057541475,0.1142471,87519.0,87518.0,0.00017139]
[1743057541687,0.48487353,87519.0,87518.0,0.00085139]
[1743057541999,0.58996155,87519.0,87518.0,0.00085139]
[1743057542289,0.5958678,87519.0,87518.0,0.00085139]
[1743057542488,0.65826837,87519.0,87518.0,0.00085139]
[1743057542989,0.0571255,87517.0,87512.0,0.27272753]
[1743057543178,0.0571255,87517.0,87506.0,0.34000165]
[1743057543179,0.1132628,87507.0,87506.0,0.34000165]
[1743057543487,0.1147028,87507.0,87506.0,0.34060165]
[1743057543792,0.12060905,87507.0,87506.0,0.34060165]
[1743057544278,0.18570905,87507.0,87506.0,0.34060165]
[1743057544680,0.18470905,87507.0,87506.0,0.34060165]
[1743057544974,0.19640074,87507.0,87506.0,0.34060165]
[1743057545787,0.19640074,87507.0,87506.0,0.0006]
[1743057545788,0.18470905,87507.0,87506.0,0.0006]
[1743057546089,0.18470905,87507.0,87498.0,0.00017139]
[1743057546090,0.1142733,87499.0,87498.0,0.00017139]
[1743057546288,0.1157133,87499.0,87498.0,0.17984599]
[1743057546485,0.1157133,87499.0,87498.0,1.67984599]
[1743057546890,0.18571955,87499.0,87498.0,1.67984599]
[1743057548191,0.18571955,87499.0,87498.0,1.68184599]